Cogmind - Beta 12 @@@ ROGUE MODE // 2024.01.28 @ 16:46:22 Player: Luminiferous Result: Self-destructed Performance ------------- Evolutions (2) 1000 Regions Visited (5) 1000 Robots Destroyed (51) 255 Value Destroyed (945) 945 Prototype IDs (25) 500 Alien Tech Used (0) 0 Bonus (385) 385 TOTAL SCORE: 4085 Bonus ------- Follower Combat Kills 85 Aligned with FarCom 300 Cogmind --------- Core Integrity 335/550 Matter 233/300 Energy 125/125 System Corruption 0% Temperature Cool (54) Movement Core (850) Ox16 Location -8/Materials Parts ------- > --- POWER (1) -------- Light Ion Engine > --- PROPULSION (3) --- (None) > --- UTILITY (5) ------ High-capacity Storage Unit Signal Interpreter Advanced Targeting Computer Advanced Targeting Computer > --- WEAPON (2) ------- Improved Light Cannon Improved Light Cannon > --- INVENTORY (20) --- Light Deuterium Engine Light Nuclear Core Light Nuclear Core Light Nuclear Core Light Nuclear Core Small Storage Unit Lightpack 2.0 ECM Suite Light Armor Plating Light Armor Plating Shield Generator Hacking Suite Missile Launcher Katana Katana Peak State ------------ > --- POWER ------------ Ion Engine > --- PROPULSION ------- Light Treads Light Treads > --- UTILITY ---------- High-capacity Storage Unit Lightpack 2.0 Shield Generator > --- WEAPON ----------- Improved Light Cannon Improved Light Cannon > --- INVENTORY -------- Light Ion Engine Light Ion Engine Light Ion Engine Light Nuclear Core Light Treads Small Storage Unit Signal Interpreter Seismic Detector ECM Suite Light Armor Plating Light Armor Plating Light Armor Plating Shield Generator Improved Light Cannon Improved Light Cannon Mining Claw Mining Claw [Rating: 42] Favorites ----------- Power Ion Engine Engine Ion Engine Power Core Light Nuclear Core Propulsion Light Treads Treads Light Treads Leg Aluminum Leg Wheel Wheel Utility High-capacity Storage Unit Device Shield Generator Storage High-capacity Storage Unit Processor Advanced Targeting Computer Protection Light Armor Plating Weapon Improved Light Cannon Energy Gun Medium Laser Ballistic Gun Light Assault Rifle Ballistic Cannon Improved Light Cannon Build | -11 -10 -10 -10 -9 -8 ------- Run | Jun Mat Min Exi Min Mat Slots Evolved 4 | . . . . . 4 Power . | . . . . . . Propulsion 1 | . . . . . 1 Utility 3 | . . . . . 3 Weapon . | . . . . . . Parts Attached 26 | 3 8 . . . 15 Power 5 | . 2 . . . 3 Engine 4 | . 2 . . . 2 Core 1 | . . . . . 1 Reactor . | . . . . . . Propulsion 7 | 2 2 . . . 3 Treads 4 | . 2 . . . 2 Leg . | . . . . . . Wheel 3 | 2 . . . . 1 Hover . | . . . . . . Flight . | . . . . . . Utility 8 | . 2 . . . 6 Device 2 | . 1 . . . 1 Storage 2 | . 1 . . . 1 Processor 3 | . . . . . 3 Hackware . | . . . . . . Protection 1 | . . . . . 1 Artifact . | . . . . . . Weapon 6 | 1 2 . . . 3 Energy Gun 1 | 1 . . . . . Energy Cannon . | . . . . . . Ballistic Gun . | . . . . . . Ballistic Cannon 5 | . 2 . . . 3 Launcher . | . . . . . . Special Weapon . | . . . . . . Impact Weapon . | . . . . . . Slashing Weapon . | . . . . . . Piercing Weapon . | . . . . . . Special Melee Weapon . | . . . . . . Unidentified Prototypes 2 | . 1 . . . 1 Parts Lost 10 | . . . . . 10 Power . | . . . . . . Propulsion 5 | . . . . . 5 Utility 3 | . . . . . 3 Weapon 2 | . . . . . 2 Highest Loss Streak 4 | . . . . . 4 To Critical Strikes . | . . . . . . Average Slot Usage (%) 95 | . 98 100 100 100 81 Engine 11 | . 13 14 14 14 4 Treads 24 | . 26 28 28 28 11 Wheel 1 | . 1 . . . 4 Device 11 | . 13 14 14 14 5 Storage 12 | . 14 14 14 14 9 Processor 5 | . . . . . 24 Ballistic Cannon 25 | . 26 28 28 28 17 Naked Turns . | . . . . . . Heaviest Build 56 | 11 55 55 55 55 56 Greatest Support 60 | 20 40 40 40 40 60 Greatest Overweight (x) 5 | . 1 1 1 1 5 Average Overweight (x) 1 | . . 1 1 1 2 Largest Inventory Capacity 40 | 8 20 20 20 20 40 Average Capacity 19 | 8 18 20 20 20 20 Most Carried 20 | 6 15 16 19 20 20 Average Carried 15 | 6 10 15 17 19 18 Final Capacity 20 | 8 20 20 20 20 20 Final Carried 20 | 6 15 16 19 20 17 Class Distribution -------------------- 100% | Mutant Dominant Class ---------------- Mutant | -10/Materials Mutant | -10/Mines Mutant | -10/Exiles Mutant | -9/Mines Mutant | -8/Materials Resources | -11 -10 -10 -10 -9 -8 ----------- Run | Jun Mat Min Exi Min Mat Matter Collected 1449 | 172 463 131 . 18 665 Remotely . | . . . . . . Salvage Created 1129 | . 351 119 . 15 644 Parts 85 | . 31 7 . 5 42 Haulers Intercepted 5 | . 2 . . . 3 Recyclers Shooed . | . . . . . . Parts Field Recycled . | . . . . . . Retrieved Matter . | . . . . . . Parts Self-Destructed . | . . . . . . Prevented . | . . . . . . Kills | -11 -10 -10 -10 -9 -8 ------- Run | Jun Mat Min Exi Min Mat Combat Hostiles Destroyed 35 | . 10 6 . . 19 Cannons 35 | . 10 6 . . 19 Classes Destroyed 8 | . 6 . . 1 1 Worker 5 | . 3 . . 1 1 Builder 1 | . . . . 1 . Hauler 5 | . 2 . . . 3 Recycler 3 | . 1 . . . 2 Watcher 2 | . 2 . . . . Swarmer 20 | . 6 3 . . 11 Grunt 14 | . 4 3 . . 7 Specialist 1 | . . . . . 1 Best Kill Streak 10 | . 4 3 . 1 10 Combat Bots Only 8 | . 4 3 . . 8 Max Kills in Single Turn 1 | . 1 1 . 1 1 Gunslinging . | . . . . . . Exploded . | . . . . . . Melee . | . . . . . . Uniques/NPCs Destroyed . | . . . . . . Combat | -11 -10 -10 -10 -9 -8 -------- Run | Jun Mat Min Exi Min Mat Damage Taken 1557 | . 302 66 . . 1189 Core 260 | . 30 15 . . 215 Absorbed by Shields 155 | . 124 26 . . 5 Core Remaining (%) 91 | 100 . . . 82 . Volleys Fired 139 | . 48 12 . 21 58 Largest 2 | . 2 2 . 2 2 Hottest 83 | . 78 78 . 78 83 Shots Fired 276 | . 96 24 . 42 114 Gun 6 | . 6 . . . . Cannon 270 | . 90 24 . 42 114 Launcher . | . . . . . . Special . | . . . . . . Kinetic 273 | . 93 24 . 42 114 Thermal 3 | . 3 . . . . Explosive . | . . . . . . Electromagnetic . | . . . . . . Robot Hit Streak 10 | . 10 4 . 2 9 Robot Miss Streak 7 | . 7 3 . 1 3 Penetration Max . | . . . . . . Secondary Targets . | . . . . . . Shots Hit Robots 131 | . 41 14 . 2 74 Core Hits 60 | . 18 6 . 2 34 Critical Kills . | . . . . . . Critical Parts Destroyed . | . . . . . . Critical Strikes 4 | . 2 1 . . 1 Blast 4 | . 2 1 . . 1 Melee Attacks . | . . . . . . Impact . | . . . . . . Slashing . | . . . . . . Piercing . | . . . . . . Sneak Attacks . | . . . . . . Combat Hostiles . | . . . . . . Follow-up Attacks . | . . . . . . Damage Inflicted 2949 | . 891 294 . 43 1721 Guns 12 | . 12 . . . . Cannons 2935 | . 878 294 . 43 1720 Explosions . | . . . . . . Melee . | . . . . . . Ramming 2 | . 1 . . . 1 Kinetic 2935 | . 878 294 . 43 1720 Thermal 12 | . 12 . . . . Explosive . | . . . . . . Electromagnetic . | . . . . . . Impact . | . . . . . . Slashing . | . . . . . . Piercing . | . . . . . . Highest Corruption . | . . . . . . Average Corruption . | . . . . . . Corruption Purged . | . . . . . . Corruption Blocked . | . . . . . . Overload Shots . | . . . . . . Overflow Damage 47 | . . 9 . . 38 Projectiles 47 | . . 9 . . 38 Explosions . | . . . . . . Melee . | . . . . . . Knockbacks 40 | . 13 2 . . 25 Impact . | . . . . . . Kinetic 37 | . 12 2 . . 23 Secondary 3 | . 1 . . . 2 Self-Inflicted Damage . | . . . . . . Shots . | . . . . . . Rammed 2 | . 1 . . . 1 Targets Rammed 2 | . 1 . . . 1 Kicked . | . . . . . . Crushed . | . . . . . . Highest Temperature 198 | . 162 126 . 198 171 Average Temperature 52 | . 53 46 . 74 35 Received Heat Transfer 369 | . 54 8 . . 307 Siege Activations . | . . . . . . Robots Corrupted . | . . . . . . Combat Hostiles . | . . . . . . Parts Fried . | . . . . . . Impact Corruptions . | . . . . . . Robots Melted . | . . . . . . Combat Hostiles . | . . . . . . Parts Melted . | . . . . . . Heat Transferred 37 | . 37 . . . . Parts Sabotaged . | . . . . . . Parts Stolen . | . . . . . . Parts Stripped . | . . . . . . Power Chain Reactions . | . . . . . . Missiles Intercepted . | . . . . . . Alert | -11 -10 -10 -10 -9 -8 ------- Run | Jun Mat Min Exi Min Mat Peak Influence 271 | . 200 110 . 47 271 Initial 18 | . . 12 . . 18 Average 73 | . 53 40 . 13 176 Maximum Alert Level 1 | . 1 . . . 1 Low Security (%) 88 | 100 95 100 . 100 59 Level 1 11 | . 4 . . . 40 Level 2 . | . . . . . . Level 3 . | . . . . . . Level 4 . | . . . . . . Level 5 . | . . . . . . High Security . | . . . . . . Max Security . | . . . . . . Squads Dispatched 7 | . 1 1 . . 5 Investigation 2 | . 1 1 . . . Extermination . | . . . . . . Reinforcement 5 | . . . . . 5 Assault . | . . . . . . Garrison . | . . . . . . Intercept . | . . . . . . Searches Triggered . | . . . . . . Construction Impeded 2 | . . . . . 2 Haulers Reinforced . | . . . . . . Active Scanning Responses . | . . . . . . Cargo Convoy Interrupts . | . . . . . . Stealth | -11 -10 -10 -10 -9 -8 --------- Run | Jun Mat Min Exi Min Mat Distress Signals 2 | . . . . . 2 Communications Jammed . | . . . . . . Distress Signals . | . . . . . . Times Spotted 59 | . 19 6 . . 34 Peak Tracking Total 7 | . 4 3 . . 7 Tactical Retreats . | . . . . . . Traps | -11 -10 -10 -10 -9 -8 ------- Run | Jun Mat Min Exi Min Mat Traps Triggered . | . . . . . . Indirectly . | . . . . . . Trap Hack Attempts . | . . . . . . Triggered . | . . . . . . Disarmed . | . . . . . . Reprogrammed . | . . . . . . Reused . | . . . . . . Traps Extracted . | . . . . . . Installed . | . . . . . . Triggered 1 | . . 1 . . . Machines | -11 -10 -10 -10 -9 -8 ---------- Run | Jun Mat Min Exi Min Mat Machines Disabled 2 | . . . . . 2 Max in Single Turn 1 | . . . . . 1 Machines Repaired . | . . . . . . Machines Sabotaged . | . . . . . . Overloaded Fab Kills . | . . . . . . Hacking | -11 -10 -10 -10 -9 -8 --------- Run | Jun Mat Min Exi Min Mat Machines Accessed 7 | . 3 1 2 . 1 Terminals 5 | . 3 1 . . 1 Fabricators . | . . . . . . Repair Stations . | . . . . . . Recycling Units . | . . . . . . Scanalyzers . | . . . . . . Garrison Access . | . . . . . . Total Hacks 18 | . 10 2 2 . 4 Successful 8 | . 4 . 2 . 2 Failed 10 | . 6 2 . . 2 Catastrophic 3 | . 2 1 . . . Database Lockouts . | . . . . . . Manual 16 | . 9 2 1 . 4 Terminals 16 | . 10 2 . . 4 Fabricators . | . . . . . . Repair Stations . | . . . . . . Recycling Units . | . . . . . . Scanalyzers . | . . . . . . Garrison Access . | . . . . . . Terminal Hacks 5 | . 2 . 2 . 1 Record 1 | . . . 1 . . Robot Analysis 1 | . 1 . . . . Hauler Manifests 2 | . 1 . . . 1 EX-Prototype ID Bank 1 | . . . 1 . . Fabricator Hacks . | . . . . . . Repair Station Hacks . | . . . . . . Recycling Unit Hacks . | . . . . . . Scanalyzer . | . . . . . . Garrison Access Hacks . | . . . . . . Unauthorized Hacks 3 | . 2 . . . 1 Terminals 3 | . 2 . . . 1 Botnet 3 | . 2 . . . 1 Fabricators . | . . . . . . Repair Stations . | . . . . . . Recycling Units . | . . . . . . Scanalyzers . | . . . . . . Garrison Access . | . . . . . . Data Cores Recovered . | . . . . . . Used . | . . . . . . Hacking Detections 4 | . 3 1 . . . Full Trace Events 3 | . 2 1 . . . Feedback Events . | . . . . . . Feedback Blocked . | . . . . . . Robot Schematics Acquired . | . . . . . . Robots Built . | . . . . . . Authchips . | . . . . . . Time . | . . . . . . Total Robot Build Rating . | . . . . . . Part Schematics Acquired . | . . . . . . Parts Built . | . . . . . . Authchips . | . . . . . . Time . | . . . . . . Total Part Build Rating . | . . . . . . Parts Repaired . | . . . . . . Time . | . . . . . . Parts Recycled . | . . . . . . Recycled Matter . | . . . . . . Retrieved Matter . | . . . . . . Retrieved Components . | . . . . . . Parts Scanalyzed . | . . . . . . Part Schematics Acquired . | . . . . . . Parts Damaged . | . . . . . . Bothacking | -11 -10 -10 -10 -9 -8 ------------ Run | Jun Mat Min Exi Min Mat Used RIF Installer . | . . . . . . Robots Hacked . | . . . . . . Non-combat . | . . . . . . Combat . | . . . . . . Robot Hacks Applied . | . . . . . . Relay Couplers Released . | . . . . . . Fabnet Peak Effective % . | . . . . . . Robots Rewired . | . . . . . . Allies Hacked . | . . . . . . Hacks Repelled . | . . . . . . Allies | -11 -10 -10 -10 -9 -8 -------- Run | Jun Mat Min Exi Min Mat Total Allies 3 | . . 3 . . . Largest Group 3 | . . 3 3 3 1 Highest-Rated Group 40 | . . 40 40 40 8 Highest-Rated Ally 16 | . . 16 16 16 8 Total Orders . | . . . . . . Ally Attacks 12 | . . . . 8 4 Total Damage 94 | . . . . 72 22 Kills 3 | . . . . 2 1 Allies Corrupted 1 | . . . . 1 . Allies Melted . | . . . . . . Intel | -11 -10 -10 -10 -9 -8 ------- Run | Jun Mat Min Exi Min Mat Robot Analysis Total 1 | . 1 . . . . Derelict Logs Recovered 2 | . . . . 2 . Drone Launches . | . . . . . . Drone Recoveries . | . . . . . . Exploration | -11 -10 -10 -10 -9 -8 ------------- Run | Jun Mat Min Exi Min Mat Turns Passed 5349 | 5 1912 1089 513 713 1117 Spaces Moved 2116 | 1 800 438 214 270 393 Core . | . . . . . . Treads 1829 | . 713 438 214 270 194 Legs . | . . . . . . Wheels 287 | 1 87 . . . 199 Hover . | . . . . . . Flight . | . . . . . . Fastest Speed 80 | 80 80 240 240 240 155 Average Speed 221 | 80 215 240 240 240 188 Slowest Speed 320 | 80 240 240 240 240 320 Overloaded Moves . | . . . . . . Propulsion Burnouts . | . . . . . . Robots Hopped . | . . . . . . Cave-ins Triggered . | . . . . . . Exploration Rate (%) 50 | 2 92 67 59 58 24 Regions Visited 5 Branch Regions 3 Pre-discovered Areas 1 | . . . 1 . . Known Exits Taken 1 | . . . . 1 . Unknown Exits Taken 4 | 1 1 1 1 . . Scrap Searched 2 | . . 2 . . . Spaces Dug 7 | . . . . 7 . Terrain Destroyed 19 | . 6 . . 7 6 Melee . | . . . . . . Projectile 19 | . 6 . . 7 6 AOE . | . . . . . . Terrain Rammed . | . . . . . . Walls Destroyed . | . . . . . . Machines Disabled . | . . . . . . Actions | -11 -10 -10 -10 -9 -8 --------- Run | Jun Mat Min Exi Min Mat Total 2515 | 3 893 453 214 295 657 Wait 184 | . 14 3 . . 167 Move 2111 | . 799 437 213 269 393 Hop . | . . . . . . Pick Up 33 | . 14 1 1 3 14 Fast Attach 4 | . 3 . . . 1 Attach 14 | . 2 . . . 12 Detach 2 | . 1 . . . 1 Swap 8 | 3 3 . . . 2 Drop 18 | . 8 . . 2 8 Fire 139 | . 48 12 . 21 58 Melee . | . . . . . . Ram 1 | . 1 . . . . Kick . | . . . . . . Crush 1 | . . . . . 1 Escape Stasis . | . . . . . . Rewire . | . . . . . . Trap . | . . . . . . Miscellaneous . | . . . . . . Route ------- -11/Junkyard -10/Materials (discovered 4 exits: [*Mat x2] / *Min x2) -10/Mines (discovered 2 exits: [*Mat] / *Exi) -10/Exiles (discovered 2 exits: [*Min x2]) -9/Mines -8/Materials (discovered 1 exit: [*Fac]) History --------- Turn | Location | Event 6 | -11/Junkyard | Discovered new exit (range 0) 6 | -11/Junkyard | Entered Materials 44 | -10/Materials | Discovered new exit (range 16) 314 | -10/Materials | Build established: Mutant 373 | -10/Materials | Discovered new exit (range 13) 664 | -10/Materials | Discovered new exit (range 3) 1413 | -10/Materials | Discovered new exit (range 3) 1918 | -10/Materials | Entered Mines 2513 | -10/Mines | Assembled infested the area 2518 | -10/Mines | Assisted by a Guerilla fighting off Assembled 2641 | -10/Mines | Assisted by bots powering up and referring to "LRC-V3" 2707 | -10/Mines | Discovered new exit (range 8) 2995 | -10/Mines | Deemed a non-threat by the Exiles lab entrance 2998 | -10/Mines | Discovered new exit (range 5) 3007 | -10/Mines | Entered Exiles 3007 | -10/Exiles | Accompanied by 3 allies 3043 | -10/Exiles | Discovered new exit (range 15) 3075 | -10/Exiles | Met 8R-AWN 3111 | -10/Exiles | Met EX-HEX 3175 | -10/Exiles | Met EX-BIN 3209 | -10/Exiles | Aligned with FarCom system 3211 | -10/Exiles | Given EX-Vault access code 3276 | -10/Exiles | Opened EX-Vault 3288 | -10/Exiles | Found Lightpack 2.0 3337 | -10/Exiles | Warned to stay clear of 0b10 Research branches 3409 | -10/Exiles | Met EX-DEC 3419 | -10/Exiles | Learned location of Zion (-7) 3498 | -10/Exiles | Discovered new exit (range 11) 3520 | -10/Exiles | Left Exiles lab with Lightpack 2.0 3520 | -10/Exiles | Entered Mines 3520 | -9/Mines | Accompanied by 3 allies 3585 | -9/Mines | Learned 2 Materials zone layouts 3645 | -9/Mines | Found a hidden stash of uninstalled traps 3775 | -9/Mines | Identified exit to Materials 4233 | -9/Mines | Entered Materials 4233 | -8/Materials | Accompanied by 1 ally 4233 | -8/Materials | Evolved 4 slots: Propulsion x1, Utility x3 4471 | -8/Materials | Destroyed 8 combat bots 5269 | -8/Materials | Discovered new exit (range 4) 5350 | -8/Materials | Self-destructed Last Messages --------------- 05317_ K-01 Serf cleans the Matter Pump. 05319_ ALERT: Suspicious intruders detected, dispatching Specialist reinforcements to area. 05322_ Penetrated by Slug. 05323_ X-62 Marksman destroyed. 05324_ Imp. Light Cannon destroyed. 05326_ Slug penetrates Matter Pump. 05329_ Penetrated by Slug. 05329_ Assault Cannon destroyed. 05331_ Slug penetrates Matter Pump. 05331_ Matter Pump disabled. 05333_ Penetrated by Slug. 05345_ U-05 Engineer builds a Wall. 05347_ Wheel destroyed. 05347_ Destroyed Wheel. 05347_ U-05 Engineer knocked back. 05348_ ALERT: Construction progress impeded, dispatching reinforcements to local area. 05350_ Penetrated by Slug. 05350_ Lgt. Armor Plating destroyed. Map ----- +----------------------------------------------------+ | ???????????????????????????????????????# = #?? | | ???????????????????????????????????????# """ #?? | | ???????????????????????????????????????# """ #?? | | ?????????????????????????????????????? # """ #?? | | ????????????????????????????????????? # #?? | | ???????????????????????????????????? # #?? | | ???????????????????????????????????###?# """ #?" | | ???????????????????????????????????????# """ # " | | ???????????????????????????????????????# """ + | | ???????????????????????????????????????#% #?? | | ???????????????????????? ???????????# % #?? | | ???????????????g???????? #?????????# " #?? | | ???????????????w???????? #?????????# """ #?? | | ?????????????g?????????# #?????????# """ #?? | | ???????????????????????# #?????????# % #?? | | ???????????????????????# #?????????# #?? | | ???????????????????????? #?????????# #?? | | ???????????????????????? #####+##### #?# | | ???????????????????????? % # | | ???????????????????????? # | | ???????????????????????? """ """ """ """ | | ????????????????????????u """ """ """ """ # | | ?????????????????######## """ """ """ """ # | | ?????????????????# # #? | | ?????????????????# # u #?# | | ?????H???????????# /@ """ """ #?? | | ????????w????????# # "%" """ / #?? | | ?????????????????# # """ """ /// [ ### | | ?????????????????# # /// %% | | ?????????????????#######; | | ????????????????????????# u %% %### | | ????????????????????????# #################+#### | | ????????????????????????# #???????????#% | | ??????????????????####### % #??????????##% " | | ??????????????# """"""" # #??????????##[% %%"" | | ??????????????# """"""" # ############# """"" | | ??????????????# """"""" # + """"" | | ??????????????# """"""" +g ###### """ | | ??????????????# """"""" #gx #????# ! | | ??????????????# #%g #####+####??# ! | | ??????????????# #[%%# #??########## | | ??????????????# ! # < # """ #????# | | ??????????????########### # """"" #????# """ | | ????????????????????????#####! """"" #????# """ | | ????????????????????????????# """"" #????# """ | | ????????????????????????????# """ #????# % | | ????????????????????????????# #????# | | ????????????????????????????# #????# | | ????????????????????????????# #????# | | ????????????????????????????##########????######## | +----------------------------------------------------+ Best States ------------- Heat Dissipation 31 Energy Generation 14 Energy Capacity 250 Matter Stores 300 Matter Capacity 300 Sight Range 16 Terrain Scan Density 10 Armor Coverage 150 Evasion (%) 44 Targeting Accuracy 16 Recoil Reduction 3 Item Schematics ----------------- None Robot Schematics ------------------ None Fabricated ------------ Nothing Alien Tech Used ----------------- None Achievements -------------- None Challenges ------------ None Game ------ Seed MiningMiningProtection Manual? 0 Play Time 00:20:07 Cumulative 27.4 hours Start 2024.01.28 @ 16:26:18 End 2024.01.28 @ 16:46:22 Sessions 1 Manual Loads 0 Difficulty Rogue Special Mode None Game No. 57 Rogue 57 Adventurer 0 Explorer 0 Win Type - Total 0 Types 0/0/0/0/0/0/0/0/0 Lore% 27 Gallery% 36 Achievement% 30 Wizard Run 0 Options --------- ASCII 0 Keyboard 0 Movement Mouse Keybinds 1 Fullscreen 2 Font 18/SmallcapsGlow Map View 76x50 Tactical HUD 1 Map Filters SHIFT_HUE(270)|BRIGHTNESS(75) Filters SHIFT_HUE(90)|BRIGHTNESS(125) Steam 1 RUN: 192ce074-634e-41d0-a3d3-b12f6d332d6f